fUST/lending_fUST_20250826
["ID","MTS","AMOUNT","RATE_DAILY","PERIOD"]
[381432770,1756194691000,-550.36,0.00041643,30]
[381432771,1756194691045,-480.0,0.00041643,30]
[381432772,1756194691087,-480.0,0.00041643,30]
[381432773,1756194691131,-1187.87,0.00041643,30]
[381432774,1756194691175,-480.0,0.00041643,30]
[381432775,1756194691219,-480.0,0.00041643,30]
[381432776,1756194691262,-480.0,0.00041643,30]
[381432777,1756194691306,-480.0,0.00041643,30]
[381432778,1756194691350,-1272.63,0.00041643,30]
[381432779,1756194691394,-393.33203436,0.00041643,30]
[381432780,1756194691439,-814.85,0.00041643,30]
[381432781,1756194691482,-3853.49,0.00041643,30]
[381432782,1756194691524,-1939.23,0.00041643,30]
[381432783,1756194691567,-480.0,0.00041643,30]
[381432784,1756194691609,-550.12,0.00041643,30]
[381432785,1756194691652,-793.19,0.00041643,30]
[381432786,1756194691694,-480.0,0.00041643,30]
[381432787,1756194691735,-776.86,0.00041643,30]
[381432788,1756194691780,-480.0,0.00041643,30]
[381432789,1756194691823,-610.97599476,0.00041643,30]
[381432790,1756194691866,-1994.55,0.00041643,30]
[381432791,1756194691912,-480.0,0.00041643,30]
[381432792,1756194691959,-2408.17,0.00041643,30]
[381432793,1756194692004,-480.0,0.00041643,30]
[381432794,1756194692049,-672.8,0.00041643,30]
[381432795,1756194692092,-480.0,0.00041643,30]
[381432796,1756194692134,-480.0,0.00041643,30]
[381432797,1756194692179,-480.0,0.00041643,30]
[381432798,1756194692223,-3906.17,0.00041643,30]
[381432799,1756194692266,-2206.81,0.00041643,30]
[381432800,1756194692309,-3053.54,0.00041643,30]
[381432801,1756194692352,-606.17,0.00041643,30]
[381432802,1756194692396,-480.0,0.00041643,30]
[381432803,1756194692438,-480.0,0.00041643,30]
[381432804,1756194692482,-913.14,0.00041643,30]
[381432805,1756194692674,-480.0,0.00041643,30]
[381432806,1756194692731,-6002.1,0.00041643,30]
[381432807,1756194692776,-466.09003796,0.00041643,30]
[381432808,1756194692821,-616.44,0.00041643,30]
[381432809,1756194692865,-721.6,0.00041643,30]
[381432810,1756194692909,-1466.94,0.00041643,30]
[381432811,1756194692958,-1765.57,0.00041643,30]
[381432812,1756194693002,-480.0,0.00041643,30]
[381432813,1756194693047,-480.0,0.00041643,30]
[381432814,1756194693093,-151.0,0.00041643,120]
[381432815,1756194693139,-480.0,0.00041643,30]
[381432816,1756194693185,-480.0,0.00041643,30]
[381432817,1756194693233,-480.0,0.00041643,30]
[381432818,1756194693279,-480.0,0.00041643,30]
[381432819,1756194693332,-480.0,0.00041643,30]
[381432820,1756194693378,-1322.68,0.00041643,30]
[381432821,1756194693425,-722.51,0.00041643,30]
[381432822,1756194693471,-480.0,0.00041643,30]
[381432823,1756194693516,-851.82,0.00041643,30]
[381432824,1756194693562,-480.0,0.00041643,30]
[381432825,1756194693609,-480.0,0.00041643,30]
[381432826,1756194693658,-2059.82,0.00041643,30]
[381432827,1756194693704,-480.0,0.00041643,30]
[381432828,1756194693749,-480.0,0.00041643,30]
[381432829,1756194693796,-480.0,0.00041643,30]
[381432830,1756194693842,-405.18515524,0.00041643,30]
[381432831,1756194693889,-480.0,0.00041643,30]
[381432832,1756194693936,-480.0,0.00041643,30]
[381432833,1756194693982,-697.63,0.00041643,30]
[381432834,1756194694030,-480.0,0.00041643,30]
[381432835,1756194694077,-151.0,0.00041643,120]
[381432836,1756194694123,-11462.94,0.00041643,30]
[381432837,1756194694169,-1010.96,0.00041643,30]
[381432838,1756194694215,-151.0,0.00041643,30]
[381432839,1756194694260,-1318.18,0.00041643,30]
[381432840,1756194694304,-628.36,0.00041643,30]
[381432841,1756194694351,-998.62,0.00041643,30]
[381432842,1756194694396,-584.69297582,0.00041643,30]
[381432843,1756194694445,-174.46219,0.00041643,120]
[381432844,1756194694489,-480.0,0.00041643,30]
[381432845,1756194694535,-2028.04,0.00041643,30]
[381432846,1756194694580,-575.86,0.00041643,30]
[381432847,1756194694625,-480.0,0.00041643,30]
[381432848,1756194694670,-480.0,0.00041643,30]
[381432849,1756194694714,-676.27,0.00041643,30]
[381432850,1756194694759,-6956.67,0.00041643,30]
[381432851,1756194694804,-480.0,0.00041643,30]
[381432852,1756194694851,-808.37,0.00041643,30]
[381432853,1756194694899,-281.58544793,0.00041643,30]
[381432854,1756194694948,-2171.25,0.00041643,30]
[381432855,1756194694996,-535.37,0.00041643,30]
[381432856,1756194695044,-480.0,0.00041643,30]
[381432857,1756194695092,-7077.92,0.00041643,30]
[381432858,1756194695140,-795.5,0.00041643,30]
[381432860,1756194695188,-480.0,0.00041643,30]
[381432862,1756194695234,-480.0,0.00041643,30]
[381432863,1756194695283,-480.0,0.00041643,30]
[381432864,1756194695329,-480.0,0.00041643,30]
[381432865,1756194695376,-1119.27,0.00041643,30]
[381432866,1756194695424,-480.0,0.00041643,30]
[381432867,1756194695470,-480.0,0.00041643,30]
[381432868,1756194695518,-542.64,0.00041643,30]
[381432869,1756194695565,-480.0,0.00041643,30]
[381432870,1756194695611,-480.0,0.00041643,30]
[381432871,1756194695659,-2075.8,0.00041643,30]
[381432873,1756194695705,-768.77,0.00041643,30]
[381432877,1756194695752,-480.0,0.00041643,30]
[381432878,1756194695798,-480.0,0.00041643,30]
[381432879,1756194695845,-595.11,0.00041643,30]
[381432880,1756194695891,-1945.2,0.00041643,30]
[381432881,1756194695940,-480.0,0.00041643,30]
[381432882,1756194695989,-1274.86,0.00041643,30]
[381432883,1756194696037,-480.0,0.00041643,30]
[381432884,1756194696084,-731.61,0.00041643,30]
[381432885,1756194696131,-989.24,0.00041643,30]
[381432886,1756194696178,-1134.03,0.00041643,30]
[381432887,1756194696225,-719.26,0.00041643,30]
[381432888,1756194696272,-480.0,0.00041643,30]
[381432889,1756194696320,-485.99,0.00041643,30]
[381432890,1756194696368,-480.0,0.00041643,30]
[381432891,1756194696418,-480.0,0.00041643,30]
[381432892,1756194696465,-548.21307107,0.00041643,30]
[381432893,1756194696515,-480.0,0.00041643,30]
[381432894,1756194696562,-929.56,0.00041643,30]
[381432895,1756194696609,-670.75,0.00041643,30]
[381432896,1756194696658,-480.0,0.00041643,30]
[381432897,1756194696705,-7075.87,0.00041643,30]
[381432898,1756194696753,-8703.33,0.00041643,30]
[381432899,1756194696799,-480.0,0.00041643,30]
[381432900,1756194696846,-810.88,0.00041643,30]
[381432901,1756194696897,-639.05,0.00041643,30]
[381432902,1756194696951,-685.88,0.00041643,30]
[381432903,1756194697000,-1090.23,0.00041643,30]
[381432904,1756194697048,-480.0,0.00041643,30]
[381432905,1756194697095,-1452.09,0.00041643,30]
[381432906,1756194697143,-477.79746835,0.00041643,30]
[381432907,1756194697192,-1255.38,0.00041643,30]
[381432908,1756194697241,-551.33,0.00041643,30]
[381432909,1756194697290,-743.81,0.00041643,30]
[381432910,1756194697337,-480.0,0.00041643,30]
[381432911,1756194697382,-701.92,0.00041643,30]
[381432912,1756194697429,-867.63,0.00041643,30]
[381432913,1756194697477,-671.86,0.00041643,30]
[381432914,1756194697523,-2707.12,0.00041643,30]
[381432915,1756194697728,-480.0,0.00041643,30]
[381432916,1756194697777,-480.0,0.00041643,30]
[381432917,1756194697826,-1054.73,0.00041643,30]
[381432918,1756194697874,-480.0,0.00041643,30]
[381432919,1756194697922,-480.0,0.00041643,30]
[381432920,1756194697968,-508.25,0.00041643,30]
[381432921,1756194698016,-480.0,0.00041643,30]
[381432922,1756194698061,-4401.16,0.00041643,30]
[381432923,1756194698108,-945.22,0.00041643,30]
[381432924,1756194698156,-480.0,0.00041643,30]
[381432925,1756194698203,-20329.46,0.00041643,30]
[381432926,1756194698249,-480.0,0.00041643,30]
[381432927,1756194698294,-404.33617532,0.00041643,30]
[381432928,1756194698340,-480.0,0.00041643,30]
[381432929,1756194698386,-480.0,0.00041643,30]
[381432930,1756194698434,-209.82283957,0.00041643,120]
[381432931,1756194698479,-1362.21,0.00041643,30]
[381432932,1756194698524,-480.0,0.00041643,30]
[381432933,1756194698572,-480.0,0.00041643,30]
[381432934,1756194698618,-480.0,0.00041643,30]
[381432935,1756194698663,-1397.26,0.00041643,30]
[381432936,1756194698709,-480.0,0.00041643,30]
[381432937,1756194698756,-480.0,0.00041643,30]
[381432938,1756194698803,-480.0,0.00041643,30]
[381432939,1756194698851,-2650.73,0.00041643,30]
[381432940,1756194698897,-774.54,0.00041643,30]
[381432941,1756194698950,-740.5,0.00041643,30]
[381432942,1756194698999,-480.0,0.00041643,30]
[381432943,1756194699045,-624.41,0.00041643,30]
[381432944,1756194699092,-1961.46,0.00041643,30]
[381432945,1756194699140,-480.0,0.00041643,30]
[381432946,1756194699188,-2886.99,0.00041643,30]
[381432947,1756194699234,-11357.83,0.00041643,30]
[381432948,1756194699280,-484.73,0.00041643,30]
[381432949,1756194699326,-3483.47,0.00041643,30]
[381432950,1756194699372,-480.0,0.00041643,30]
[381432951,1756194699416,-490.48,0.00041643,30]
[381432952,1756194699463,-6533.1,0.00041643,30]
[381432953,1756194699508,-480.0,0.00041643,30]
[381432954,1756194699552,-5302.95,0.00041643,30]
[381432955,1756194699596,-849.44,0.00041643,30]
[381432956,1756194699640,-480.0,0.00041643,30]
[381432957,1756194699683,-1015.52,0.00041643,30]
[381432958,1756194699724,-480.0,0.00041643,30]
[381432959,1756194699765,-480.0,0.00041643,30]
[381432960,1756194699809,-555.56,0.00041643,30]
[381432961,1756194699852,-338.20838116,0.00041643,30]
[381432962,1756194699895,-986.67,0.00041643,30]
[381432963,1756194699942,-480.0,0.00041643,30]
[381432964,1756194699987,-1674.3,0.00041643,30]
[381432965,1756194700034,-480.0,0.00041643,30]
[381432966,1756194700077,-495.25,0.00041643,30]
[381432967,1756194700121,-480.0,0.00041643,30]
[381432968,1756194700164,-480.0,0.00041643,30]
[381432969,1756194700207,-874.7,0.00041643,30]
[381432970,1756194700251,-480.0,0.00041643,30]
[381432971,1756194700293,-8252.35,0.00041643,30]
[381432972,1756194700334,-698.13,0.00041643,30]
[381432973,1756194700378,-480.0,0.00041643,30]
[381432974,1756194700418,-1479.27,0.00041643,30]
[381432975,1756194700458,-553.4019878,0.00041643,30]
[381432976,1756194700498,-404.80524996,0.00041643,30]
[381432977,1756194700538,-1141.81,0.00041643,30]
[381432978,1756194700579,-1104.46,0.00041643,30]
[381432979,1756194700619,-690.29,0.00041643,30]
[381432980,1756194700666,-480.0,0.00041643,30]
[381432981,1756194700723,-480.0,0.00041643,30]
[381432982,1756194700766,-863.67,0.00041643,30]
[381432983,1756194700811,-480.0,0.00041643,30]
[381432984,1756194700866,-633.85,0.00041643,30]
[381432985,1756194700921,-480.0,0.00041643,30]
[381432986,1756194700967,-480.0,0.00041643,30]
[381432987,1756194701014,-1155.37,0.00041643,30]
[381432988,1756194701060,-480.0,0.00041643,30]
[381432989,1756194701108,-339.0956041,0.00041643,30]
[381432990,1756194701151,-480.0,0.00041643,30]
[381432991,1756194701197,-1297.12,0.00041643,30]
[381432992,1756194701241,-480.0,0.00041643,30]
[381432993,1756194701285,-9764.89,0.00041643,30]
[381432994,1756194701330,-2076.21,0.00041643,30]
[381432995,1756194701378,-480.0,0.00041643,30]
[381432996,1756194701424,-5324.22,0.00041643,30]
[381432997,1756194701472,-1218.0,0.00041643,30]
[381432998,1756194701519,-619.39,0.00041643,30]
[381432999,1756194701564,-1206.37,0.00041643,30]
[381433000,1756194701609,-480.0,0.00041643,30]
[381433001,1756194701652,-480.0,0.00041643,30]
[381433002,1756194701697,-4441.01,0.00041643,30]
[381433003,1756194701740,-533.91,0.00041643,30]
[381433004,1756194701785,-480.0,0.00041643,30]
[381433005,1756194701830,-658.34,0.00041643,30]
[381433006,1756194701875,-586.55,0.00041643,30]
[381433007,1756194701921,-480.0,0.00041643,30]
[381433008,1756194701966,-3087.91,0.00041643,30]
[381433009,1756194702011,-480.0,0.00041643,30]
[381433010,1756194702057,-4122.24,0.00041643,30]
[381433011,1756194702104,-2733.49,0.00041643,30]
[381433012,1756194702150,-2648.74,0.00041643,30]
[381433013,1756194702195,-1448.53,0.00041643,30]
[381433014,1756194702239,-480.0,0.00041643,30]
[381433015,1756194702283,-480.0,0.00041643,30]
[381433016,1756194702326,-1422.65,0.00041643,30]
[381433017,1756194702370,-923.1,0.00041643,30]
[381433018,1756194702416,-701.07,0.00041643,30]
[381433019,1756194702622,-884.64,0.00041643,30]
[381433020,1756194702669,-998.46,0.00041643,30]
[381433021,1756194702712,-2813.84,0.00041643,30]
[381433022,1756194702757,-1205.53,0.00041643,30]
[381433023,1756194702802,-2073.73,0.00041643,30]
[381433024,1756194702845,-480.0,0.00041643,30]
[381433025,1756194702889,-480.0,0.00041643,30]
[381433026,1756194702934,-480.0,0.00041643,30]
[381433027,1756194702978,-495.19,0.00041643,30]
[381433028,1756194703023,-523.36,0.00041643,30]
[381433029,1756194703068,-480.0,0.00041643,30]
[381433030,1756194703111,-627.37724665,0.00041643,30]
[381433031,1756194703156,-1190.45,0.00041643,30]
[381433032,1756194703205,-954.21,0.00041643,30]
[381433033,1756194703248,-2013.26,0.00041643,30]
[381433034,1756194703293,-3451.01,0.00041643,30]
[381433035,1756194703336,-480.0,0.00041643,30]
[381433036,1756194703381,-500.0,0.0004173,30]
[381433037,1756194703425,-500.0,0.0004173,60]
[381433038,1756194703471,-500.0,0.0004173,60]
[381433039,1756194703517,-500.0,0.0004173,60]
[381433040,1756194703561,-500.0,0.00041823,30]
[381433041,1756194703605,-5000.0,0.00041824,84]
[381433042,1756194703650,-1023.96,0.00041917,30]
[381433043,1756194703694,-480.0,0.00041917,30]
[381433044,1756194703737,-480.0,0.00041917,30]
[381433045,1756194703782,-560.5812945,0.00041917,30]
[381433046,1756194703827,-627.58,0.00041917,30]
[381433047,1756194703871,-480.0,0.00041917,30]
[381433048,1756194703919,-1015.78,0.00041917,30]
[381433049,1756194703964,-480.0,0.00041917,30]
[381433050,1756194704012,-480.0,0.00041917,30]
[381433051,1756194704057,-480.0,0.00041917,30]
[381433052,1756194704102,-965.63,0.00041917,30]
[381433053,1756194704145,-480.0,0.00041917,30]
[381433054,1756194704193,-493.3,0.00041917,30]
[381433055,1756194704238,-480.0,0.00041917,30]
[381433056,1756194704283,-480.0,0.00041917,30]
[381433057,1756194704330,-480.0,0.00041917,30]
[381433058,1756194704376,-1167.64,0.00041917,30]
[381433059,1756194704421,-740.63,0.00041917,30]
[381433060,1756194704466,-480.0,0.00041917,30]
[381433061,1756194704512,-1120.72,0.00041917,30]
[381433062,1756194704560,-789.04,0.00041917,30]
[381433063,1756194704606,-480.0,0.00041917,30]
[381433064,1756194704653,-480.0,0.00041917,30]
[381433065,1756194704702,-346.77102386,0.00041917,30]
[381433066,1756194704749,-480.0,0.00041917,30]
[381433067,1756194704796,-480.0,0.00041917,30]
[381433068,1756194704844,-480.0,0.00041917,30]
[381433069,1756194704891,-480.0,0.00041917,30]
[381433070,1756194704938,-1939.98,0.00041917,30]
[381433071,1756194704984,-218.30985839,0.00041917,30]
[381433072,1756194705031,-480.0,0.00041917,30]
[381433073,1756194705079,-448.00354687,0.00041917,30]
[381433074,1756194710305,-885.73658305,0.00028533,10]
[381433075,1756194710315,-183.640021,0.00028766,2]
[381433076,1756194710325,-159.509766,0.0002911,2]
[381433077,1756194710335,-160.0,0.00029609,2]
[381433078,1756194710345,-1200.0,0.00029618,2]
[381433079,1756194710354,-160.0,0.00029619,2]
[381433080,1756194710364,-232.53539143,0.00029619,2]
[381433081,1756194710373,-217.18350301,0.00029619,2]
[381433082,1756194710382,-300.0,0.00029619,2]
[381433083,1756194710391,-160.0,0.0002962,2]
[381433084,1756194710400,-160.0,0.0002962,2]
[381433085,1756194710410,-376.39720582,0.00029737,2]
[381433086,1756194710420,-216.09257821,0.00029737,2]
[381433087,1756194710429,-6847.86575225,0.00030033,2]
[381433088,1756194710439,-160.758,0.00030259,25]
[381433089,1756194710448,-885.73658305,0.00030259,13]
[381433090,1756194710458,-18518.1590472,0.00030394,2]
[381433091,1756194710468,-217.14754348,0.0003131,2]
[381433092,1756194710477,-500.0,0.0003131,2]
[381433093,1756194710486,-500.0,0.0003131,2]
[381433094,1756194710495,-236.35408556,0.0003131,2]
[381433095,1756194710505,-420.62224037,0.0003131,2]
[381433096,1756194710514,-439.37644253,0.0003131,2]
[381433097,1756194710523,-9432.55165505,0.00031311,2]
[381433098,1756194710532,-1305.87246811,0.00031679,2]
[381433099,1756194710542,-414.67,0.00031773,5]
[381433100,1756194710551,-240.694639,0.00031785,10]
[381433101,1756194710560,-159.535,0.00031785,2]
[381433102,1756194710570,-500.0,0.000318,5]
[381433103,1756194710579,-159.58383,0.00031853,20]
[381433104,1756194710589,-1000.0,0.00031864,14]
[381433105,1756194710598,-420.0,0.00031935,2]
[381433106,1756194710607,-885.73658305,0.00031986,17]
[381433107,1756194710617,-6873.66833205,0.00032,2]
[381433108,1756194710626,-597.24,0.00032,7]
[381433109,1756194710635,-500.0,0.00032049,10]
[381433110,1756194710645,-1182.1353321,0.00032049,2]
[381433111,1756194710654,-44273.4877069,0.00032059,2]
[381433112,1756194710664,-159.58383,0.0003273,2]
[381433113,1756194710674,-180.25885548,0.00033227,10]
[381433114,1756194710683,-500.0,0.000333,5]
[381433115,1756194710692,-885.73658305,0.00033712,21]
[381433116,1756194710702,-1000.0,0.00033848,5]
[381433117,1756194710711,-160.0,0.00034338,3]
[381433118,1756194710721,-1182.1353321,0.0003438,2]
[381433119,1756194710730,-159.58383,0.0003439,20]
[381433120,1756194710739,-1500.0,0.00034396,5]
[381433121,1756194710749,-587.0,0.00034432,2]
[381433122,1756194710758,-159.58383,0.00034612,5]
[381433123,1756194710767,-160.0,0.00034724,7]
[381433124,1756194710778,-217.18350301,0.00034724,7]
[381433125,1756194710787,-159.58383,0.0003489,2]
[381433126,1756194710796,-164.64416824,0.00034944,5]
[381433127,1756194710805,-159.58383,0.00035,7]
[381433128,1756194710815,-597.24,0.00035,7]
[381433129,1756194710825,-500.0,0.00035167,5]
[381433130,1756194710834,-500.0,0.00035167,5]
[381433131,1756194710844,-160.0,0.0003542,4]
[381433132,1756194710854,-885.73658305,0.00035439,24]
[381433133,1756194710864,-593.3336109,0.00035485,2]
[381433134,1756194710875,-2370.96110916,0.00035485,2]
[381433135,1756194710884,-270.60436289,0.00035485,2]
[381433136,1756194710894,-1081.33503409,0.00035485,2]
[381433137,1756194710904,-183.640021,0.00035615,2]
[381433138,1756194710915,-613.66097192,0.0003589,2]
[381433139,1756194710928,-1182.1353321,0.0003598,3]
[381433140,1756194710937,-215.69,0.0003599,3]
[381433141,1756194710947,-647.07,0.0003599,3]
[381433142,1756194710956,-44273.4877069,0.0003599,3]
[381433143,1756194710966,-160.0,0.0003599,3]
[381433144,1756194710975,-217.18350301,0.0003599,3]
[381433145,1756194710984,-2446.53,0.00036,7]
[381433146,1756194710995,-83946.33,0.00036,14]
[381433147,1756194711005,-217.18350301,0.00036,30]
[381433148,1756194711015,-212.0,0.00036034,2]
[381433149,1756194711025,-159.58383,0.00036301,5]
[381433150,1756194711036,-1182.1353321,0.00036359,3]
[381433151,1756194711045,-211.0,0.00036404,2]
[381433152,1756194711055,-160.0,0.00036503,5]
[381433153,1756194711065,-211.0,0.00036573,2]
[381433154,1756194711075,-211.0,0.00036691,7]
[381433155,1756194711084,-159.58383,0.0003675,7]
[381433156,1756194711095,-159.509766,0.00036815,2]
[381433157,1756194711105,-613.6609719,0.00036893,2]
[381433158,1756194711114,-597.24,0.000369,7]
[381433159,1756194711124,-159.58383,0.00036926,20]
[381433160,1756194711133,-159.58383,0.0003705,2]
[381433161,1756194711143,-888.0,0.00037096,7]
[381433162,1756194711152,-823.0,0.00037125,2]
[381433163,1756194711161,-885.73658305,0.00037166,28]
[381433164,1756194711171,-2446.53,0.000372,7]
[381433165,1756194711180,-83946.33,0.000372,14]
[381433166,1756194711190,-500.0,0.000373,10]
[381433167,1756194711200,-431.38,0.0003736,3]
[381433168,1756194711209,-890.0,0.00037363,2]
[381433169,1756194711219,-888.0,0.00037369,2]
[381433170,1756194711228,-160.0,0.00037586,6]
[381433171,1756194711238,-845.07960918,0.000376,3]
[381433172,1756194711247,-216.09257821,0.000376,3]
[381433173,1756194711257,-151.0,0.00037628,2]
[381433174,1756194711266,-151.0,0.00037628,2]
[381433175,1756194711275,-151.0,0.00037628,2]
[381433176,1756194711285,-151.0,0.00037628,2]
[381433177,1756194711299,-151.0,0.00037628,2]
[381433178,1756194711309,-203.86155924,0.00037628,2]
[381433179,1756194711318,-151.0,0.00037628,2]
[381433180,1756194711327,-151.28914424,0.00037628,2]
[381433181,1756194711337,-888.0,0.00037728,7]
[381433182,1756194711347,-613.6609719,0.00037895,2]
[381433183,1756194711356,-151.0,0.00037902,2]
[381433184,1756194711366,-251.21368316,0.00037902,2]
[381433185,1756194711375,-151.0,0.00037902,2]
[381433186,1756194711384,-151.0,0.00037902,2]
[381433187,1756194711394,-890.0,0.00037905,2]
[381433188,1756194711403,-890.0,0.0003792,2]
[381433189,1756194711413,-981.97,0.00037933,2]
[381433190,1756194711429,-409.0,0.00037933,2]
[381433191,1756194711439,-642.439,0.00037933,2]
[381433192,1756194711449,-2162.389,0.00037933,2]
[381433193,1756194711458,-159.58383,0.0003799,5]
[381433194,1756194711467,-198.0,0.00038176,2]
[381433195,1756194711476,-151.0,0.00038176,2]
[381433196,1756194711487,-198.0,0.00038176,2]
[381433197,1756194711496,-597.24,0.000383,7]
[381433198,1756194711506,-500.0,0.00038356,120]
[381433199,1756194711515,-628.77,0.00038356,14]
[381433200,1756194711524,-500.0,0.00038356,120]
[381433201,1756194711533,-500.0,0.00038356,120]
[381433202,1756194711543,-500.0,0.00038356,120]
[381433203,1756194711552,-500.0,0.00038356,120]
[381433204,1756194711561,-500.0,0.00038356,120]
[381433205,1756194711571,-500.0,0.00038356,120]
[381433206,1756194711580,-500.0,0.00038356,120]
[381433207,1756194711590,-500.0,0.00038356,120]
[381433208,1756194711599,-500.0,0.00038356,120]
[381433209,1756194711608,-500.0,0.00038356,120]
[381433210,1756194711617,-500.0,0.00038356,120]
[381433211,1756194711626,-500.0,0.00038356,120]
[381433212,1756194711636,-500.0,0.00038356,120]
[381433213,1756194711645,-500.0,0.00038356,120]
[381433214,1756194711655,-500.0,0.00038356,120]
[381433215,1756194711665,-500.0,0.00038356,120]
[381433216,1756194711675,-500.0,0.00038356,120]
[381433217,1756194711684,-500.0,0.00038356,120]
[381433218,1756194711693,-285.33666459,0.00038356,120]
[381433219,1756194711702,-2446.53,0.000384,7]
[381433220,1756194711711,-83946.33,0.000384,14]
[381433221,1756194711720,-198.0,0.0003845,2]
[381433222,1756194711730,-159.58383,0.000385,7]
[381433223,1756194711739,-628.77,0.0003863,14]
[381433224,1756194711748,-160.0,0.00038669,7]
[381433225,1756194711758,-888.0,0.00038736,7]
[381433226,1756194711767,-1061.1562476,0.00038842,2]
[381433227,1756194711776,-888.0,0.00038875,2]
[381433228,1756194711785,-613.6609719,0.00038898,2]
[381433229,1756194711794,-628.77,0.00038904,14]
[381433230,1756194711803,-1182.1353321,0.0003893,3]
[381433231,1756194711813,-44273.4877069,0.0003894,3]
[381433232,1756194711822,-1182.1353321,0.00039069,3]
[381433233,1756194711831,-376.39720582,0.0003907,3]
[381433234,1756194711841,-160.0,0.000391,3]
[381433235,1756194711851,-232.53539143,0.000391,3]
[381433236,1756194711861,-628.77,0.00039178,14]
[381433237,1756194711871,-159.58383,0.00039209,2]
[381433238,1756194711880,-500.0,0.00039444,7]
[381433239,1756194711891,-1400.0,0.00039451,7]
[381433240,1756194711900,-628.77,0.00039452,14]
[381433241,1756194711909,-159.58383,0.00039463,20]
[381433242,1756194711923,-376.39720582,0.000395,7]
[381433243,1756194711932,-845.07960918,0.000395,7]
[381433244,1756194711941,-216.09257821,0.000395,7]
[381433245,1756194711950,-160.0,0.000395,7]
[381433246,1756194711961,-2446.53,0.000395,7]
[381433247,1756194711970,-232.53539143,0.000395,7]
[381433248,1756194711979,-83946.33,0.000395,14]
[381433249,1756194711988,-500.0,0.00039519,7]
[381433250,1756194711997,-888.0,0.00039546,2]
[381433251,1756194712006,-500.0,0.00039583,7]
[381433252,1756194712016,-1100.0,0.00039597,7]
[381433253,1756194712026,-159.58383,0.0003968,5]
[381433254,1756194712035,-628.77,0.00039726,14]
[381433255,1756194712045,-160.0,0.00039751,8]
[381433256,1756194712054,-1100.0,0.00039764,7]
[381433257,1756194712063,-888.0,0.00039796,2]
[381433258,1756194712073,-1182.1353321,0.00039837,3]
[381433259,1756194712083,-194.72792766,0.0003984,7]
[381433260,1756194712094,-201.93286099,0.0003984,7]
[381433261,1756194712103,-209.40437684,0.0003984,7]
[381433262,1756194712112,-217.15233878,0.0003984,7]
[381433263,1756194712121,-225.18697532,0.0003984,7]
[381433264,1756194712131,-233.51889341,0.0003984,7]
[381433265,1756194712141,-242.15909246,0.0003984,7]
[381433266,1756194712150,-251.11897888,0.0003984,7]
[381433267,1756194712160,-260.4103811,0.0003984,7]
[381433268,1756194712169,-270.0455652,0.0003984,7]
[381433269,1756194712179,-280.03725112,0.0003984,7]
[381433270,1756194712189,-290.39862941,0.0003984,7]
[381433271,1756194712199,-301.1433787,0.0003984,7]
[381433272,1756194712208,-367.98497993,0.00039841,7]
[381433273,1756194712218,-44273.4877069,0.00039846,3]
[381433274,1756194712228,-239.0,0.00039851,7]
[381433275,1756194712239,-160.0,0.0003988,3]